bitfinex-derivatives/quotes_BTCF0:USTF0_20260106
["timestamp","ask_amount","ask_price","bid_price","bid_amount"]
[1767726792071,0.010844,92254.0,92241.0,0.010845]
[1767726792271,0.1216456,92255.0,92245.0,0.02163337]
[1767726792674,0.0293656,92255.0,92245.0,0.02163337]
[1767726793069,0.0185216,92255.0,92243.0,0.010845]
[1767726793275,0.010844,92257.0,92242.0,0.12801891]
[1767726793776,0.010844,92257.0,92243.0,0.010845]
[1767726793971,0.02949361,92257.0,92244.0,0.02163337]
[1767726794174,0.01864961,92257.0,92244.0,0.02163337]
[1767726794373,0.010844,92258.0,92244.0,0.02163337]
[1767726794982,0.010844,92258.0,92242.0,0.09554054]
[1767726794983,0.0914487,92267.0,92249.0,0.02163337]
[1767726795179,0.02257964,92270.0,92258.0,0.010844]
[1767726795180,0.09224,92270.0,92258.0,0.010844]
[1767726795386,0.1945297,92278.0,92262.0,0.010843]
[1767726795585,0.1945297,92278.0,92250.0,0.1028179]
[1767726795586,0.010843,92266.0,92249.0,0.03247837]
[1767726795780,0.0914487,92264.0,92250.0,0.09224]
[1767726796085,0.01832203,92266.0,92251.0,0.02163337]
[1767726796284,0.0914487,92271.0,92250.0,0.1950579]
[1767726796285,0.010843,92267.0,92250.0,0.2059019]
[1767726796479,0.02946242,92267.0,92250.0,0.22753527]
[1767726796680,0.02946242,92267.0,92251.0,0.02163337]
[1767726797583,0.010843,92265.0,92251.0,0.02163337]
[1767726797776,0.010843,92263.0,92250.0,0.1028179]
[1767726797978,0.010843,92263.0,92251.0,0.09224]
[1767726799087,0.010843,92266.0,92251.0,0.09224]
[1767726799787,0.010843,92264.0,92251.0,0.09224]
[1767726800984,0.11006812,92267.0,92247.0,0.02163337]
[1767726801180,0.010843,92261.0,92248.0,0.09224]
[1767726801687,0.010843,92261.0,92250.0,0.1028179]
[1767726802775,0.010843,92261.0,92248.0,0.09224]
[1767726802979,0.010843,92261.0,92250.0,0.1028179]
[1767726803680,0.0914487,92264.0,92250.0,0.1028179]
[1767726803876,0.02946142,92267.0,92251.0,0.02163337]
[1767726804201,0.010842,92271.0,92257.0,0.1028179]
[1767726804383,0.010842,92271.0,92260.0,0.1028179]
[1767726805087,0.0914487,92274.0,92260.0,0.1028179]
[1767726805385,0.0914487,92274.0,92250.0,0.09554054]
[1767726805386,0.02257964,92270.0,92251.0,0.010844]
[1767726805591,0.010843,92265.0,92252.0,0.02163337]
[1767726806983,0.0914487,92270.0,92252.0,0.02163337]
[1767726807193,3.5e-07,92279.0,92275.0,0.11717391]
[1767726807483,0.11402834,92296.0,92281.0,0.010841]
[1767726807682,0.1028179,92310.0,92275.0,0.02163337]
[1767726807683,0.11402834,92294.0,92280.0,0.1028179]
[1767726807888,0.11402834,92294.0,92280.0,0.1136589]
[1767726808191,0.01084,92286.0,92272.0,0.11717391]
[1767726808490,0.01084,92287.0,92272.0,0.02163337]
[1767726808688,0.01084,92287.0,92271.0,0.09224]
[1767726809191,0.01084,92287.0,92272.0,0.010842]
[1767726809385,0.01084,92290.0,92272.0,0.010842]
[1767726810082,0.01084,92290.0,92274.0,0.010842]
[1767726810785,0.01084,92290.0,92280.0,0.1028179]
[1767726811176,0.01084,92293.0,92280.0,0.1028179]
[1767726811375,0.11045045,92296.0,92282.0,0.02108753]
[1767726811376,0.01900175,92296.0,92282.0,0.02108753]
[1767726811580,0.09916735,92302.0,92286.0,0.1028179]
[1767726811789,0.09916735,92302.0,92290.0,0.1028179]
[1767726811992,0.09916735,92302.0,92283.0,0.02108753]
[1767726811993,0.12250051,92302.0,92281.0,0.18333524]
[1767726812289,0.010839,92297.0,92281.0,0.18333524]
[1767726812889,0.010839,92297.0,92282.0,0.010841]
[1767726813092,0.01084,92292.0,92281.0,0.09224]
[1767726813893,0.010839,92295.0,92281.0,0.09224]
[1767726814592,0.010839,92298.0,92281.0,0.09224]
[1767726815293,0.010839,92298.0,92282.0,0.010841]
[1767726815589,0.010839,92296.0,92281.0,0.09224]
[1767726816878,0.010839,92294.0,92280.0,0.1028179]
[1767726817079,0.12250051,92289.0,92272.0,0.010842]
[1767726817283,0.01084,92286.0,92273.0,0.09224]
[1767726817486,0.010839,92298.0,92275.0,0.010842]
[1767726817487,0.01084,92292.0,92275.0,0.010842]
[1767726817786,0.01084,92288.0,92272.0,0.03192953]
[1767726818093,0.01084,92288.0,92273.0,0.09224]
[1767726818296,0.01084,92291.0,92274.0,0.010842]
[1767726818888,0.01084,92291.0,92274.0,0.03192953]
[1767726819286,0.12250051,92292.0,92275.0,0.09224]
[1767726819591,0.01084,92287.0,92276.0,0.09224]
[1767726823688,0.01084,92285.0,92276.0,0.09224]
[1767726824401,0.02333316,92289.0,92269.0,0.09109524]
[1767726824602,0.12250051,92286.0,92270.0,0.0922]
[1767726824893,0.010841,92283.0,92270.0,0.0922]
[1767726825098,0.010841,92283.0,92268.0,0.010842]
[1767726825099,0.010841,92283.0,92271.0,0.0922]
[1767726825485,0.11000735,92286.0,92271.0,0.0922]
[1767726825905,0.01084,92286.0,92271.0,0.11328753]
[1767726827002,0.01084,92285.0,92271.0,0.11328753]
[1767726827595,0.010841,92284.0,92271.0,0.11328753]
[1767726828190,0.09916735,92291.0,92272.0,0.02108753]
[1767726828702,0.01084,92288.0,92273.0,0.03192953]
[1767726829294,0.01084,92288.0,92274.0,0.02108753]
[1767726830004,0.01084,92290.0,92274.0,0.02108753]
[1767726830200,0.12250051,92296.0,92276.0,0.02108753]
[1767726830405,0.12250051,92295.0,92276.0,0.02108753]
[1767726830705,0.01084,92290.0,92276.0,0.02108753]
[1767726832089,0.13333951,92294.0,92276.0,0.02108753]
[1767726832295,0.01084,92291.0,92274.0,0.02108753]
[1767726832895,0.01084,92289.0,92274.0,0.02108753]
[1767726833301,0.01084,92292.0,92278.0,0.09109524]
[1767726833508,0.01084,92292.0,92278.0,0.08749196]
[1767726833696,0.0922,92297.0,92278.0,0.08749196]
[1767726834402,0.21470051,92297.0,92278.0,0.08749196]
[1767726834707,0.12250051,92296.0,92274.0,0.010842]
[1767726835399,0.01084,92291.0,92275.0,0.00963026]
[1767726836505,0.01084,92287.0,92275.0,0.00963026]
[1767726836707,0.01084,92285.0,92271.0,0.10152338]
[1767726837007,0.01084,92288.0,92272.0,0.00932338]
[1767726837198,0.01084,92288.0,92273.0,0.00906846]
[1767726837705,0.01084,92291.0,92274.0,0.01991046]
[1767726838005,0.01084,92289.0,92274.0,0.01991046]
[1767726838603,0.01084,92287.0,92274.0,0.00906846]
[1767726840304,0.01084,92285.0,92274.0,0.00906846]
[1767726840604,0.02333316,92290.0,92271.0,0.0922]
[1767726840804,0.010841,92281.0,92271.0,0.0922]
[1767726841408,0.010841,92281.0,92267.0,0.09944218]
[1767726841599,0.01965002,92284.0,92268.0,0.0922]
[1767726841910,0.010841,92279.0,92268.0,0.0922]
[1767726842110,0.010841,92279.0,92268.0,0.10029527]
[1767726842611,0.010841,92281.0,92270.0,0.00809527]
[1767726843199,0.010841,92281.0,92268.0,0.0922]
[1767726843200,0.01084,92292.0,92275.0,0.01093254]
[1767726843401,0.01084,92287.0,92269.0,0.010842]
[1767726843600,0.01084,92287.0,92270.0,9.154e-05]
[1767726843800,0.01084,92287.0,92271.0,0.010842]
[1767726844010,0.09892356,92288.0,92271.0,0.010842]
[1767726846511,0.10976356,92288.0,92271.0,0.010842]
[1767726846811,0.10976356,92288.0,92273.0,0.010842]
[1767726847602,0.09892356,92288.0,92275.0,0.010841]
[1767726847803,0.01965002,92290.0,92275.0,0.010841]
[1767726848002,0.01084,92291.0,92275.0,0.10333837]
[1767726848716,0.01866582,92302.0,92285.0,0.09249737]
[1767726848903,0.0922,92304.0,92294.0,0.010839]
[1767726849614,0.00216665,92309.0,92294.0,0.010839]
[1767726850113,0.02141675,92309.0,92296.0,0.010839]
[1767726851305,0.02141675,92309.0,92293.0,0.010839]
[1767726851816,0.09509331,92332.0,92304.0,0.00113997]
[1767726852118,0.09509331,92332.0,92306.0,0.00113997]
[1767726852119,0.11390604,92332.0,92306.0,0.00113997]
[1767726852507,0.11390604,92332.0,92309.0,0.00113997]
[1767726852709,0.09509331,92329.0,92308.0,0.09249737]
[1767726852912,0.010836,92322.0,92306.0,0.00113997]
[1767726853515,0.010836,92322.0,92305.0,0.00239197]
[1767726853909,0.03117514,92322.0,92305.0,0.0922]
[1767726854519,0.12626845,92322.0,92305.0,0.0922]
[1767726855513,0.11543245,92320.0,92305.0,0.0922]
[1767726855818,0.12626845,92319.0,92305.0,0.0922]
[1767726856207,0.02033914,92323.0,92306.0,0.010838]
[1767726856617,0.02033914,92323.0,92308.0,0.010838]
[1767726857716,0.10592931,92325.0,92308.0,0.010838]
[1767726858413,0.010836,92323.0,92308.0,0.010838]
[1767726858608,0.010836,92321.0,92305.0,0.103038]
[1767726859522,0.09509331,92317.0,92305.0,0.0922]
[1767726859718,0.09509331,92317.0,92288.0,0.01084]
[1767726859719,0.11543245,92316.0,92304.0,0.0922]
[1767726859926,0.11543245,92316.0,92303.0,0.0922]
[1767726860216,0.09509331,92316.0,92301.0,0.010838]
[1767726860614,0.010835,92330.0,92302.0,0.09249737]
[1767726860808,0.010835,92328.0,92313.0,0.010837]
[1767726861118,0.18729331,92338.0,92317.0,0.010837]
[1767726861119,0.010835,92334.0,92317.0,0.010837]
[1767726861309,0.010835,92332.0,92317.0,0.010837]
[1767726861512,0.010835,92328.0,92312.0,0.09249737]
[1767726861812,0.010835,92328.0,92313.0,0.010837]
[1767726862524,0.010835,92334.0,92317.0,0.10333437]
[1767726862720,0.03117314,92338.0,92320.0,0.010836]
[1767726862926,0.11543245,92337.0,92320.0,0.010836]
[1767726863114,0.010834,92336.0,92320.0,0.010836]
[1767726864514,0.03002173,92336.0,92320.0,0.010836]
[1767726866022,0.01918773,92336.0,92322.0,0.010836]
[1767726866231,0.00216594,92339.0,92324.0,0.10333337]
[1767726866818,0.02098609,92339.0,92326.0,0.09249737]
[1767726867021,0.02098609,92339.0,92316.0,0.010837]
[1767726867022,0.0922,92349.0,92329.0,0.09249737]
[1767726867317,0.0922,92349.0,92313.0,0.26356]
[1767726867318,0.11543245,92346.0,92330.0,0.103035]
[1767726867623,0.010833,92347.0,92331.0,0.0922]
[1767726867813,0.09509331,92352.0,92331.0,0.0922]
[1767726868214,0.010833,92349.0,92332.0,0.10333237]
[1767726868412,0.10592631,92352.0,92332.0,0.09249737]
[1767726868618,0.10592631,92352.0,92334.0,0.010835]
[1767726868922,0.09509331,92341.0,92325.0,0.010836]
[1767726869122,0.03117214,92345.0,92326.0,0.0922]
[1767726869316,0.010834,92343.0,92326.0,0.0922]
[1767726869510,0.02033914,92345.0,92327.0,0.010835]
[1767726869714,0.10592631,92346.0,92327.0,0.010835]
[1767726869910,0.10592631,92346.0,92329.0,0.010835]
[1767726870531,0.010834,92344.0,92327.0,0.010835]
[1767726871031,0.11543245,92341.0,92328.0,0.09216]
[1767726871229,0.11543245,92341.0,92326.0,0.010836]
[1767726871427,0.12626645,92341.0,92326.0,0.010836]
[1767726871630,0.10592731,92341.0,92327.0,0.09216]
[1767726873735,0.010834,92339.0,92327.0,0.09216]
[1767726874134,0.010835,92335.0,92327.0,0.09216]
[1767726874319,0.11012634,92340.0,92327.0,0.09216]
[1767726874525,0.010834,92339.0,92326.0,0.09216]
[1767726874924,0.010834,92342.0,92329.0,0.010835]
[1767726875331,0.11012634,92344.0,92329.0,0.010835]
[1767726876032,0.010834,92341.0,92329.0,0.010835]
[1767726876534,0.010834,92341.0,92326.0,0.102996]
[1767726876929,0.010834,92339.0,92326.0,0.102996]
[1767726877124,0.010834,92339.0,92326.0,0.09216]
[1767726878424,0.010834,92342.0,92326.0,0.09216]
[1767726878626,0.010834,92342.0,92327.0,0.010835]
[1767726879748,0.010834,92340.0,92326.0,0.09216]
[1767726880048,0.010834,92340.0,92326.0,0.102996]
[1767726880749,0.010834,92340.0,92326.0,0.09216]
[1767726881149,0.010834,92341.0,92326.0,0.09216]
[1767726881349,0.09084468,92344.0,92326.0,0.09216]
[1767726881850,0.010834,92341.0,92326.0,0.102996]
[1767726882642,0.09084468,92344.0,92326.0,0.09216]
[1767726882846,0.19468876,92350.0,92326.0,0.09216]
[1767726882847,0.010834,92336.0,92326.0,0.09216]
[1767726883153,0.010834,92336.0,92321.0,0.010836]
[1767726883552,0.010834,92339.0,92323.0,0.010836]
[1767726884544,0.010834,92337.0,92323.0,0.010836]
[1767726887353,0.010834,92337.0,92322.0,0.09216]
[1767726887559,0.010834,92337.0,92322.0,0.102996]
[1767726889657,0.01928166,92322.0,92303.0,0.010838]
[1767726889956,0.09216,92322.0,92301.0,0.09744179]
[1767726890154,0.09216,92322.0,92310.0,0.10252876]
[1767726890354,0.09216,92322.0,92310.0,0.11336576]
[1767726890552,0.09216,92322.0,92312.0,0.010837]
[1767726891946,0.09216,92322.0,92310.0,0.10252876]
[1767726892862,0.09216,92322.0,92309.0,0.010837]
[1767726893161,0.09216,92322.0,92310.0,0.10252876]
[1767726895555,0.010837,92317.0,92300.0,0.10252876]
[1767726895857,0.010837,92317.0,92301.0,0.010838]
[1767726896059,0.11012634,92318.0,92296.0,0.09216]
[1767726896260,0.11012634,92315.0,92300.0,0.10252876]
[1767726896456,0.09084468,92315.0,92300.0,0.10252876]
[1767726896656,0.010837,92317.0,92301.0,0.010838]
[1767726898564,0.10168068,92320.0,92303.0,0.010838]
[1767726898865,0.010837,92318.0,92303.0,0.010838]
[1767726900562,0.10252876,92330.0,92296.0,0.09216]
[1767726900563,0.01786434,92329.0,92308.0,0.10252876]
[1767726900862,0.010836,92326.0,92310.0,0.10252876]
[1767726901063,0.010836,92324.0,92310.0,0.11336576]
[1767726901365,0.11781798,92323.0,92310.0,0.11336576]
[1767726901564,0.102996,92324.0,92296.0,0.09216]
[1767726901565,0.09299311,92316.0,92296.0,0.09216]
[1767726901760,0.09299311,92314.0,92300.0,0.10252876]
[1767726901955,0.09299311,92314.0,92296.0,0.09216]
[1767726902159,0.010834,92336.0,92290.0,0.10252876]
[1767726902160,0.09299311,92305.0,92290.0,0.10252876]
[1767726902763,0.11148997,92298.0,92280.0,0.10252876]
[1767726903068,0.09299311,92298.0,92280.0,0.19468876]
[1767726903263,0.010838,92304.0,92288.0,0.10252876]
[1767726903468,0.010838,92304.0,92288.0,0.11336876]
[1767726903671,0.09216,92306.0,92292.0,0.01084]
[1767726903871,0.09216,92306.0,92297.0,0.010839]
[1767726904060,0.09216,92306.0,92294.0,0.010839]
[1767726904254,0.09299311,92311.0,92288.0,0.10252876]
[1767726904255,0.09216,92307.0,92296.0,0.010839]
[1767726905766,0.09216,92307.0,92293.0,0.010839]
[1767726905971,0.11148997,92303.0,92290.0,0.10252876]
[1767726906372,0.09299311,92303.0,92291.0,0.01084]
[1767726906771,0.01849686,92346.0,92293.0,0.20505752]
[1767726907070,0.09299311,92335.0,92322.0,0.010836]
[1767726907262,0.09299311,92335.0,92325.0,0.010836]
[1767726907462,0.09299311,92335.0,92312.0,0.102997]
[1767726907658,0.09299311,92335.0,92323.0,0.010836]
[1767726907966,0.11148997,92334.0,92318.0,0.010836]
[1767726908173,0.09299311,92332.0,92318.0,0.010836]
[1767726908869,0.09299311,92328.0,92303.0,0.09807071]
[1767726909065,0.11148997,92317.0,92294.0,0.09216]
[1767726909273,0.11148997,92317.0,92300.0,0.10252876]
[1767726909471,0.09299311,92317.0,92305.0,0.010838]
[1767726910671,0.09216,92321.0,92307.0,0.010838]
[1767726910874,0.010835,92329.0,92311.0,0.010837]
[1767726911066,0.11148997,92334.0,92326.0,0.010835]
[1767726911267,0.09216,92333.0,92319.0,0.10252876]
[1767726911478,0.09216,92333.0,92325.0,0.010836]
[1767726911878,0.09216,92333.0,92322.0,0.010836]
[1767726912469,0.09216,92333.0,92324.0,0.010836]
[1767726912671,0.09299311,92335.0,92324.0,0.010836]
[1767726912875,0.09216,92334.0,92324.0,0.010836]
[1767726913574,0.09216,92334.0,92326.0,0.010836]
[1767726913779,0.09216,92333.0,92326.0,0.010836]
[1767726914081,0.09216,92333.0,92323.0,0.010836]
[1767726914777,0.09216,92333.0,92325.0,0.010836]
[1767726916176,0.09299311,92335.0,92325.0,0.010836]
[1767726916376,0.09216,92332.0,92325.0,0.010836]
[1767726917176,0.09216,92332.0,92320.0,0.10252876]
[1767726917379,0.09299311,92327.0,92310.0,0.10252876]
[1767726917582,0.11148997,92323.0,92306.0,0.09216]
[1767726917880,0.09299311,92323.0,92310.0,0.10252876]
[1767726918281,0.09299311,92323.0,92315.0,0.010837]
[1767726918682,0.09299311,92321.0,92314.0,0.010837]
[1767726918884,0.01849686,92327.0,92316.0,0.010837]
[1767726919182,0.11148997,92326.0,92316.0,0.010837]
[1767726919584,0.11148997,92326.0,92318.0,0.010836]
[1767726921676,0.11148997,92326.0,92315.0,0.010837]
[1767726922278,0.10382911,92319.0,92309.0,0.00216665]
[1767726922481,0.09299311,92314.0,92309.0,0.11553341]
[1767726922787,0.09216,92319.0,92312.0,0.010837]
[1767726923887,0.01849686,92318.0,92309.0,0.00216665]
[1767726924080,0.11148997,92310.0,92304.0,0.010838]
[1767726924276,0.09299311,92310.0,92304.0,0.010838]
[1767726926987,0.09299311,92310.0,92303.0,0.010838]
[1767726929792,0.11148997,92314.0,92303.0,0.010838]
[1767726929985,0.09299311,92312.0,92303.0,0.010838]
[1767726930790,0.09216,92311.0,92303.0,0.010838]
[1767726931492,0.18788727,92311.0,92303.0,0.010838]
[1767726931988,0.010836,92323.0,92301.0,0.09573963]
[1767726932193,0.09216,92322.0,92311.0,0.010837]
[1767726932894,0.01664081,92324.0,92311.0,0.010837]
[1767726933090,0.09572727,92322.0,92311.0,0.010837]
[1767726933294,0.09216,92321.0,92311.0,0.010837]
[1767726933595,0.18788727,92321.0,92311.0,0.010837]
[1767726933792,0.18788727,92321.0,92310.0,0.10252876]
[1767726933993,0.010837,92317.0,92310.0,0.10252876]
[1767726934295,0.11236808,92320.0,92307.0,0.11336676]
[1767726934492,0.11236808,92320.0,92310.0,0.10252876]
[1767726935791,0.09572727,92320.0,92310.0,0.10252876]
[1767726935992,0.09572727,92320.0,92311.0,0.010837]
[1767726936492,0.09572727,92320.0,92310.0,0.10252876]
[1767726936493,0.09216,92320.0,92310.0,0.10252876]
[1767726938105,0.09216,92320.0,92311.0,0.010837]
[1767726939304,0.09216,92320.0,92313.0,0.010837]
[1767726939500,0.11236808,92324.0,92310.0,0.10252876]
[1767726939707,0.09572727,92322.0,92319.0,0.010836]
[1767726939908,0.09572727,92322.0,92316.0,0.010837]
[1767726940106,0.09216,92321.0,92316.0,0.010837]
[1767726940699,0.09572727,92322.0,92316.0,0.010837]
[1767726940904,0.09216,92321.0,92316.0,0.010837]
[1767726941090,0.09572727,92321.0,92313.0,0.010837]
[1767726941296,0.18788727,92321.0,92313.0,0.010837]
[1767726941601,0.09572727,92321.0,92313.0,0.010837]
[1767726941795,0.09572727,92321.0,92316.0,0.010837]
[1767726942001,0.18788727,92321.0,92316.0,0.010837]
[1767726942193,0.01664081,92327.0,92318.0,0.010836]
[1767726942398,0.09572727,92324.0,92318.0,0.010836]
[1767726942705,0.09572727,92324.0,92308.0,0.010838]
[1767726942706,0.01664081,92329.0,92320.0,0.010836]
[1767726942902,0.01664081,92329.0,92308.0,0.010838]
[1767726942903,0.09216,92328.0,92319.0,0.010836]
[1767726943098,0.01664081,92329.0,92319.0,0.010836]
[1767726943402,0.10880081,92328.0,92319.0,0.010836]
[1767726943801,0.10880081,92328.0,92318.0,0.10252876]
[1767726944506,0.01664081,92327.0,92314.0,0.010837]
[1767726945107,0.09216,92326.0,92307.0,0.00172327]
[1767726945308,0.09216,92325.0,92310.0,0.00172327]
[1767726945705,0.09216,92325.0,92308.0,0.09573963]
[1767726945906,0.09216,92325.0,92307.0,0.00172327]
[1767726946301,0.01664081,92323.0,92313.0,0.010837]
[1767726946501,0.09572727,92324.0,92315.0,0.010837]
[1767726946706,0.09216,92325.0,92315.0,0.010837]
[1767726947904,0.10880081,92325.0,92312.0,0.010837]
[1767726948109,0.01664081,92324.0,92312.0,0.010837]
[1767726948409,0.01664081,92323.0,92312.0,0.010837]
[1767726948610,0.01664081,92322.0,92312.0,0.010837]
[1767726949112,0.09572727,92323.0,92314.0,0.010837]
[1767726949798,0.09572727,92323.0,92303.0,0.09573963]
[1767726949799,0.11236808,92323.0,92303.0,0.09573963]
[1767726950006,0.11236808,92313.0,92299.0,0.1203]
[1767726950206,0.09572727,92313.0,92295.0,0.01134493]
[1767726950407,0.09572727,92313.0,92295.0,0.07136559]
[1767726951011,0.01664081,92308.0,92293.0,0.09216]
[1767726951311,0.010837,92311.0,92296.0,0.010839]
[1767726951312,0.01664081,92306.0,92296.0,0.010839]
[1767726951511,0.11236808,92307.0,92290.0,0.01084]
[1767726952314,0.11236808,92307.0,92299.0,0.010839]
[1767726955417,0.01664081,92312.0,92299.0,0.010839]
[1767726955619,0.01664081,92312.0,92301.0,0.010838]
[1767726955816,0.01664081,92310.0,92301.0,0.010838]
[1767726956017,0.01664081,92309.0,92301.0,0.010838]
[1767726957617,0.01664081,92309.0,92289.0,0.00972509]
[1767726957823,0.01946531,92317.0,92304.0,0.010838]
[1767726958028,0.01946531,92314.0,92302.0,0.010838]
[1767726958220,0.01946531,92312.0,92302.0,0.010838]
[1767726959328,0.01946531,92311.0,92302.0,0.010838]
[1767726959523,0.01946531,92311.0,92304.0,0.010838]
[1767726959823,0.01946531,92311.0,92291.0,0.10464715]
[1767726960020,0.01946531,92311.0,92299.0,0.010839]
[1767726960421,0.09216,92312.0,92283.0,0.010841]
[1767726960422,0.01946531,92301.0,92283.0,0.010841]
[1767726960625,0.01946531,92297.0,92291.0,0.01084]
[1767726960926,0.01946531,92297.0,92288.0,0.01084]
[1767726961219,0.01946531,92296.0,92287.0,0.01084]
[1767726961428,0.03886756,92296.0,92287.0,0.01084]
[1767726961820,0.03886756,92296.0,92289.0,0.01084]
[1767726962123,0.03886756,92296.0,92291.0,0.01084]
[1767726962423,0.01940225,92296.0,92291.0,0.01084]
[1767726962623,0.09231243,92297.0,92291.0,0.01084]
[1767726962826,0.11248516,92297.0,92288.0,0.01084]
[1767726963019,0.02017273,92296.0,92290.0,0.01084]
[1767726963724,0.02017273,92296.0,92279.0,0.00216735]
[1767726963725,0.03947056,92296.0,92292.0,0.010839]
[1767726965222,0.03947056,92296.0,92280.0,0.010841]
[1767726965419,0.03947056,92296.0,92289.0,0.01084]
[1767726966824,0.13861379,92296.0,92291.0,0.01084]
[1767726967020,0.13861379,92296.0,92288.0,0.01084]
[1767726967630,0.13861379,92296.0,92290.0,0.01084]
[1767726968730,0.13861379,92296.0,92292.0,0.01084]
[1767726970826,0.09216,92300.0,92292.0,0.01084]
[1767726972332,0.09216,92300.0,92279.0,0.00216735]
[1767726972539,0.11089091,92300.0,92279.0,0.00216735]
[1767726972732,0.02017273,92291.0,92279.0,0.01300835]
[1767726972927,0.02017273,92291.0,92283.0,0.010841]
[1767726973134,0.02017273,92291.0,92281.0,0.010841]
[1767726976041,0.02017273,92297.0,92279.0,0.00216735]
[1767726976231,0.02017273,92295.0,92283.0,0.01084]
[1767726976546,0.02017273,92295.0,92279.0,0.00216735]
[1767726977238,0.02017273,92291.0,92279.0,0.01300835]
[1767726977544,0.11931596,92289.0,92276.0,0.010841]
[1767726977738,0.02017273,92285.0,92270.0,0.0922]
[1767726978242,0.02017273,92284.0,92274.0,0.010842]
[1767726978543,0.02017273,92284.0,92273.0,0.010842]
[1767726978745,0.02017273,92283.0,92263.0,0.0922]
[1767726978940,0.02017273,92283.0,92272.0,0.010842]
[1767726979148,0.02017273,92283.0,92274.0,0.010842]
[1767726979645,0.010841,92282.0,92263.0,0.61080212]
[1767726979835,0.01084,92292.0,92263.0,0.61080212]
[1767726979836,0.02017273,92277.0,92263.0,0.0922]
[1767726980548,0.02017273,92277.0,92266.0,0.010843]
[1767726981640,0.02017273,92276.0,92263.0,0.010843]
[1767726982143,0.02017273,92276.0,92265.0,0.010843]
[1767726982645,0.02017273,92275.0,92262.0,0.010843]
[1767726983741,0.03101573,92267.0,92256.0,0.0922]
[1767726984048,0.02017273,92263.0,92249.0,0.00216806]
[1767726984250,0.02017273,92251.0,92235.0,0.010846]
[1767726984544,0.02017273,92248.0,92235.0,0.010846]
[1767726984744,0.0922,92251.0,92216.0,0.103048]
[1767726984745,0.02017273,92245.0,92233.0,0.010846]
[1767726984944,0.02017273,92245.0,92235.0,0.010846]
[1767726985135,0.02017273,92244.0,92235.0,0.010846]
[1767726985744,0.02017273,92244.0,92227.0,0.0922]
[1767726985745,0.02017273,92243.0,92227.0,0.0922]
[1767726986045,0.0922,92251.0,92241.0,0.010845]
[1767726986242,0.0922,92251.0,92236.0,0.02004255]
[1767726986243,0.09914323,92250.0,92236.0,0.010846]
[1767726986542,0.09914323,92250.0,92240.0,0.010846]
[1767726986744,0.09914323,92250.0,92228.0,0.02004255]
[1767726986745,7.3e-07,92250.0,92234.0,0.02004255]
[1767726986949,0.09914323,92256.0,92247.0,0.010845]
[1767726987250,0.11859519,92256.0,92247.0,0.010845]
[1767726987647,0.11859519,92256.0,92244.0,0.010845]
[1767726987943,0.01070611,92254.0,92235.0,0.09855957]
[1767726988144,0.01070611,92252.0,92231.0,0.02004255]
[1767726988542,0.01070611,92252.0,92239.0,0.010846]
[1767726988952,0.01945196,92256.0,92223.0,0.09855957]
[1767726988953,0.10964625,92246.0,92223.0,0.09855957]
[1767726989148,0.01050302,92243.0,92224.0,0.0922]
[1767726989542,0.01050302,92243.0,92233.0,0.010846]
[1767726989852,0.09914323,92244.0,92235.0,0.010846]
[1767726990945,0.09914323,92250.0,92237.0,0.010846]
[1767726991146,0.01081018,92249.0,92237.0,0.010846]
[1767726991346,0.01081018,92249.0,92239.0,0.010846]
[1767726993155,0.01081018,92249.0,92229.0,0.02004255]
[1767726993156,0.01081018,92249.0,92236.0,0.010846]
[1767726993850,0.00983319,92244.0,92233.0,0.010846]
[1767726994151,0.00983319,92244.0,92235.0,0.010846]
[1767726994346,0.09692904,92245.0,92235.0,0.010846]
[1767726994747,0.10676223,92245.0,92235.0,0.010846]
[1767726994954,0.00983319,92245.0,92235.0,0.010846]
[1767726995158,0.009633,92247.0,92226.0,0.02267853]
[1767726995347,0.009633,92246.0,92232.0,0.09224]
[1767726995956,0.009633,92251.0,92232.0,0.09224]
[1767726996756,0.009633,92251.0,92238.0,0.010846]
[1767726996952,0.00935508,92250.0,92238.0,0.010846]
[1767726998447,0.00865516,92249.0,92229.0,0.1182443]
[1767726998642,0.00865516,92249.0,92230.0,0.09224]
[1767726999449,0.00865516,92249.0,92235.0,0.010846]
[1767727000543,0.00865516,92249.0,92230.0,0.09224]
[1767727000747,0.00865516,92249.0,92239.0,0.010846]
[1767727001352,0.00865516,92249.0,92235.0,0.010846]
[1767727001754,0.00808385,92248.0,92232.0,0.010847]
[1767727001956,0.00789406,92238.0,92231.0,0.010847]
[1767727002258,0.00789406,92238.0,92226.0,0.09224]
[1767727002660,0.09692904,92239.0,92226.0,0.09224]
[1767727003168,0.09692904,92239.0,92231.0,0.010847]
[1767727004664,0.09692904,92239.0,92226.0,0.09224]
[1767727004869,0.09692904,92239.0,92233.0,0.010846]
[1767727005072,0.09692904,92239.0,92230.0,0.010847]
[1767727005762,0.09692904,92239.0,92232.0,0.010847]
[1767727006562,0.09692904,92239.0,92220.0,0.10276417]
[1767727006769,0.09692904,92239.0,92230.0,0.010847]
[1767727009077,0.09692904,92239.0,92229.0,0.010847]
[1767727009259,0.09692904,92239.0,92231.0,0.010847]
[1767727010773,0.09692904,92239.0,92228.0,0.010847]
[1767727011278,0.09692904,92244.0,92231.0,0.010847]
[1767727016984,0.09692904,92244.0,92232.0,0.010846]
[1767727017181,0.09224,92249.0,92238.0,0.010846]
[1767727017371,0.01942075,92256.0,92239.0,0.10276417]
[1767727017685,0.09699933,92258.0,92246.0,0.10276417]
[1767727017878,0.00493033,92257.0,92240.0,0.19927002]
[1767727018073,0.02362015,92257.0,92240.0,0.19927002]
[1767727018874,0.02362015,92257.0,92244.0,0.010845]
[1767727019078,0.01868982,92257.0,92244.0,0.010845]
[1767727019384,0.01881607,92261.0,92246.0,0.010845]
[1767727019586,0.1298013,92261.0,92246.0,0.010845]
[1767727019792,0.1298013,92261.0,92250.0,0.10276417]
[1767727019793,0.01874523,92261.0,92250.0,0.10276417]
[1767727020083,0.10070343,92264.0,92250.0,0.10276417]
[1767727020283,0.00846343,92263.0,92250.0,0.10276417]
[1767727020886,0.010844,92258.0,92250.0,0.10276417]
[1767727021186,0.010844,92258.0,92243.0,0.01949749]
[1767727021485,0.010844,92258.0,92243.0,0.010845]
[1767727021789,0.010844,92256.0,92242.0,0.010845]
[1767727022181,0.010844,92259.0,92242.0,0.010845]